bitfinex-derivatives/quotes_ETHF0:USTF0_20250906
["timestamp","ask_amount","ask_price","bid_price","bid_amount"]
[1757177777150,3.44087091,4293.7,4293.6,0.8957]
[1757177777347,3.79287091,4293.7,4293.6,0.8957]
[1757177777847,0.23307091,4293.7,4293.6,0.8957]
[1757177778241,0.58407091,4293.7,4293.6,0.8957]
[1757177779043,0.23307091,4293.7,4293.6,0.8957]
[1757177779548,0.58307091,4293.7,4293.6,0.8957]
[1757177780543,3.79087091,4293.7,4293.6,0.8957]
[1757177781351,3.78987091,4293.7,4293.6,0.8957]
[1757177782048,3.44087091,4293.7,4293.6,0.8957]
[1757177782250,3.78887091,4293.7,4293.6,0.8957]
[1757177782549,3.44087091,4293.7,4293.6,0.8957]
[1757177782852,3.78887091,4293.7,4293.6,0.8957]
[1757177783252,3.44087091,4293.7,4293.6,0.8957]
[1757177783452,0.58007091,4293.7,4293.6,0.8957]
[1757177783853,0.54870778,4293.7,4293.6,0.8957]
[1757177784054,0.20170778,4293.7,4293.6,0.8957]
[1757177784455,0.54870778,4293.7,4293.6,1.10066558]
[1757177785355,0.20170778,4293.7,4293.6,1.10066558]
[1757177785754,0.54670778,4293.7,4293.6,1.10066558]
[1757177787153,0.20170778,4293.7,4293.6,1.10066558]
[1757177787456,0.54670778,4293.7,4293.6,1.10066558]
[1757177787659,3.75450778,4293.7,4293.6,1.10066558]
[1757177787853,3.75450778,4293.7,4292.9,3.2078]
[1757177788160,0.20170778,4293.6,4292.9,3.2078]
[1757177788456,0.54470778,4293.5,4293.1,0.31594667]
[1757177788656,0.20170778,4293.4,4293.2,0.31594667]
[1757177788858,1.2334,4293.5,4293.3,0.31594667]
[1757177789164,3.2078,4293.7,4293.4,0.31594667]
[1757177789359,0.20180515,4293.6,4293.5,0.31594667]
[1757177789553,0.54480515,4293.6,4293.5,0.31594667]
[1757177789756,1.43520515,4293.6,4293.5,0.31594667]
[1757177790358,1.2347,4293.5,4292.9,3.2078]
[1757177790561,0.20180515,4293.4,4292.9,3.2078]
[1757177790858,0.8904,4293.2,4292.9,3.2078]
[1757177791056,0.20180515,4293.1,4292.9,3.2078]
[1757177791259,0.54280515,4293.0,4292.9,3.2078]
[1757177792162,0.20180515,4293.0,4292.9,3.2078]
[1757177792366,0.54280515,4293.0,4292.9,5.3801]
[1757177792753,0.20180515,4293.0,4292.9,5.3801]
[1757177793057,0.54180515,4293.0,4292.9,5.3801]
[1757177793456,1.07230067,4293.0,4291.9,3.2078]
[1757177793753,0.8904,4292.4,4291.5,3.5735]
[1757177794064,0.8904,4292.2,4291.5,3.5735]
[1757177794255,0.3443,4292.0,4291.5,3.2078]
[1757177794455,0.3443,4292.0,4291.0,3.5427]
[1757177794456,1.09220515,4291.9,4291.0,3.5427]
[1757177794653,0.20180515,4291.8,4291.0,3.5427]
[1757177794857,0.20180515,4291.7,4291.0,3.5427]
[1757177795050,0.20180515,4291.6,4291.0,3.5427]
[1757177795254,0.54080515,4291.5,4291.0,3.5427]
[1757177795559,0.339,4291.6,4291.1,0.7007]
[1757177797658,0.339,4291.6,4291.1,0.1599]
[1757177798259,0.339,4291.6,4291.0,3.5427]
[1757177798760,0.339,4291.6,4291.0,3.3677]
[1757177798954,0.8904,4291.7,4291.1,0.1599]
[1757177799265,0.3443,4292.0,4291.1,0.1599]
[1757177799558,0.335,4292.2,4291.6,3.2078]
[1757177799758,0.335,4292.2,4291.6,3.3677]
[1757177799958,0.8904,4292.3,4291.7,0.19488253]
[1757177800155,0.8904,4292.8,4292.0,0.1599]
[1757177800455,0.8904,4292.8,4292.1,0.19488253]
[1757177800657,0.8904,4292.6,4292.2,0.35478253]
[1757177800859,0.335,4292.7,4292.3,0.19488253]
[1757177801163,1.2347,4292.5,4292.4,0.19488253]
[1757177801558,0.8904,4292.9,4292.4,0.35478253]
[1757177801756,3.5521,4293.0,4292.5,0.19488253]
[1757177801959,0.8904,4292.7,4292.6,0.19488253]
[1757177802158,1.2244,4292.7,4292.6,0.19488253]
[1757177802457,0.8904,4292.7,4292.6,0.19488253]
[1757177802658,1.2234,4292.7,4292.6,0.19488253]
[1757177803159,0.333,4292.7,4291.7,3.2078]
[1757177803359,0.3443,4292.0,4291.8,0.1946125]
[1757177803554,1.2347,4292.0,4291.9,0.1946125]
[1757177804365,0.8904,4292.4,4291.9,0.3545125]
[1757177804570,0.8904,4292.4,4292.0,0.1946125]
[1757177804770,0.8904,4292.4,4292.2,0.1599]
[1757177804965,0.8904,4292.4,4292.3,0.1946125]
[1757177805370,0.8904,4292.4,4292.3,0.19454335]
[1757177806269,1.2214,4292.4,4292.3,0.19456793]
[1757177806769,0.8904,4292.4,4292.3,0.19456793]
[1757177806970,1.2214,4292.4,4292.3,0.19456793]
[1757177807462,1.42199261,4292.4,4292.3,0.19456793]
[1757177807671,1.42099261,4292.4,4292.3,0.19456793]
[1757177807869,1.09099261,4292.4,4292.3,0.19456793]
[1757177808071,1.42099261,4292.4,4292.3,0.19456793]
[1757177809170,1.09099261,4292.4,4292.3,0.19456793]
[1757177809371,1.42099261,4292.4,4292.3,0.19456793]
[1757177809873,2.03179261,4292.4,4292.3,0.45036793]
[1757177810171,1.70179261,4292.4,4292.3,0.45036793]
[1757177810372,2.03079261,4292.4,4292.3,0.45036793]
[1757177810572,2.62889261,4292.4,4292.3,0.45036793]
[1757177810968,2.62889261,4292.4,4292.3,0.19456793]
[1757177817770,1.73849261,4292.4,4291.5,3.2078]
[1757177817965,2.078,4291.7,4291.6,0.19041927]
[1757177818168,2.60159261,4291.7,4291.6,0.79351927]
[1757177818470,2.60159261,4291.7,4291.6,0.19041927]
[1757177818771,1.2154,4291.1,4291.0,3.2078]
[1757177818973,2.60159261,4291.1,4291.0,3.8109]
[1757177819368,2.27859261,4291.1,4291.0,3.8109]
[1757177819568,0.20059261,4291.1,4291.0,9.1569]
[1757177819767,0.20090219,4291.1,4291.0,8.5813]
[1757177819969,0.20090219,4291.1,4291.0,9.1569]
[1757177821477,0.20090219,4291.1,4291.0,4.9546]
[1757177821975,2.27890219,4291.1,4291.0,4.379]
[1757177822588,1.68080219,4291.1,4291.0,4.379]
[1757177824684,2.27890219,4291.1,4291.0,4.379]
[1757177825080,1.38250219,4291.1,4291.0,4.9546]
[1757177825282,0.20090219,4291.1,4291.0,4.9546]
[1757177825483,0.51990219,4291.1,4291.0,4.9546]
[1757177826077,1.38250219,4291.1,4291.0,4.379]
[1757177826283,0.51990219,4291.1,4291.0,4.9546]
[1757177826478,0.20090219,4291.1,4291.0,4.9546]
[1757177830184,4.427,4292.0,4291.1,0.3747]
[1757177830384,5.0443,4292.0,4291.9,1.1676]
[1757177830684,5.3603,4292.0,4291.9,1.34592635]
[1757177831080,5.0443,4292.0,4291.9,1.34592635]
[1757177831284,1.8365,4292.0,4291.9,1.34592635]
[1757177831485,1.5352,4292.0,4291.9,1.72062635]
[1757177831682,1.2192,4292.0,4291.9,1.72062635]
[1757177832080,1.5342,4292.0,4291.9,1.34592635]
[1757177832279,1.8365,4292.0,4291.9,1.34592635]
[1757177832480,2.1515,4292.0,4291.9,1.34592635]
[1757177832979,1.8365,4292.0,4291.9,1.34592635]
[1757177833386,2.4346,4292.0,4291.9,1.34592635]
[1757177834085,2.7486,4292.0,4291.9,1.34592635]
[1757177837080,2.7466,4292.0,4291.9,1.34592635]
[1757177838588,2.4346,4292.0,4291.9,1.34592635]
[1757177838789,2.7456,4292.0,4291.9,1.34592635]
[1757177839686,2.6065,4292.0,4291.9,1.34592635]
[1757177840188,2.6065,4292.0,4291.9,1.34074303]
[1757177840386,3.68801658,4292.0,4291.9,1.34074303]
[1757177840985,3.37701658,4292.0,4291.9,1.34074303]
[1757177841287,3.68801658,4292.0,4291.9,0.17314303]
[1757177841483,0.3609,4291.5,4291.0,3.2078]
[1757177841682,2.1411,4291.1,4291.0,3.2078]
[1757177841875,2.4501,4291.1,4291.0,3.2078]
[1757177842092,2.64411957,4291.1,4291.0,4.3953]
[1757177842284,2.33511957,4291.1,4291.0,4.3953]
[1757177842489,2.05361957,4291.1,4291.0,5.3042]
[1757177842788,2.64411957,4291.1,4291.0,4.3953]
[1757177842983,3.18498883,4291.1,4291.0,3.7902]
[1757177843188,3.18498883,4291.1,4291.0,3.2078]
[1757177844185,3.18498883,4291.1,4291.0,5.6284]
[1757177844186,0.73488883,4291.1,4291.0,5.6284]
[1757177844383,2.59346736,4291.1,4291.0,5.3042]
[1757177844588,3.18396736,4291.1,4291.0,4.3953]
[1757177844783,3.18396736,4291.1,4291.0,3.7902]
[1757177847388,2.28546736,4291.1,4291.0,4.3953]
[1757177847593,0.19401957,4291.1,4291.0,9.9344]
[1757177849582,0.19401957,4291.1,4291.0,5.6284]
[1757177849783,0.19401957,4291.1,4291.0,5.6102]
[1757177850493,1.74461957,4291.1,4291.0,5.3042]
[1757177850789,2.8761292,4291.1,4291.0,3.7902]
[1757177851492,3.1811292,4291.1,4291.0,4.3953]
[1757177852197,1.0400292,4291.1,4291.0,5.3042]
[1757177852892,0.7350292,4291.1,4291.0,5.3042]
[1757177853295,1.6867292,4291.1,4291.0,5.3042]
[1757177854196,0.7350292,4291.1,4291.0,5.6233]
[1757177854393,0.19401957,4291.1,4291.0,5.9273]
[1757177854887,0.9517,4291.9,4291.1,0.8225]
[1757177855092,0.9517,4291.9,4291.8,2.01]
[1757177855294,2.09158128,4291.9,4291.8,1.1875]
[1757177855496,2.68208128,4291.9,4291.8,1.1875]
[1757177856399,2.68208128,4291.9,4291.7,3.2078]
[1757177856699,2.1411,4291.3,4291.2,3.2078]
[1757177856892,2.98408128,4291.3,4291.2,3.2078]
[1757177857894,0.54098128,4291.3,4291.2,4.3953]
[1757177858096,2.1411,4291.3,4291.2,4.3953]
[1757177858288,2.68208128,4291.3,4291.2,3.2078]
[1757177858694,2.98408128,4291.3,4291.2,3.2078]
[1757177858895,2.68208128,4291.3,4291.2,5.2178]
[1757177859100,2.39358128,4291.3,4291.2,5.2178]
[1757177859701,2.98408128,4291.3,4291.2,4.3953]
[1757177860702,2.98408128,4291.3,4291.2,3.2078]
[1757177861102,2.98408128,4291.3,4290.7,3.2078]
[1757177861299,2.1411,4290.8,4290.7,3.2078]
[1757177861502,2.98308128,4290.8,4290.7,3.7902]
[1757177862803,2.1411,4290.8,4290.7,3.7902]
[1757177862999,2.4411,4290.8,4290.7,3.7902]
[1757177863196,0.3,4290.8,4290.7,5.2178]
[1757177863696,0.299,4291.5,4291.4,2.01]
[1757177863902,0.83744091,4291.5,4291.4,5.2178]
[1757177864203,0.53844091,4291.5,4291.4,5.2178]
[1757177866698,0.53844091,4291.5,4291.4,5.3884713]
[1757177867099,0.73472376,4291.5,4291.4,5.3884713]
[1757177869105,3.21882376,4291.5,4291.4,4.5659713]
[1757177869499,2.27752376,4291.5,4291.4,5.3684713]
[1757177870410,0.73472376,4291.5,4291.4,5.3684713]
[1757177870611,1.65632376,4291.5,4291.4,5.3684713]
[1757177871204,2.27752376,4291.5,4291.4,5.3684713]
[1757177871705,3.21882376,4291.5,4291.4,3.3784713]
[1757177872004,7.45184376,4291.5,4291.4,0.1706713]
[1757177872604,7.51382376,4291.5,4291.4,0.1706713]
[1757177874312,7.21882376,4291.5,4291.4,0.1706713]
[1757177874607,7.51282376,4291.5,4291.4,0.1706713]
[1757177875609,7.21882376,4291.5,4291.4,0.1706713]
[1757177875811,7.51282376,4291.5,4291.4,0.1706713]
[1757177876112,3.51282376,4291.5,4291.4,0.1706713]
[1757177876406,3.51282376,4291.5,4291.4,0.7632713]
[1757177877110,3.51282376,4291.5,4291.4,0.1706713]
[1757177879011,7.51282376,4291.5,4291.4,0.1706713]
[1757177879812,7.5128501,4291.5,4291.4,0.17073417]
[1757177880011,0.3713,4291.0,4290.7,3.2078]
[1757177880209,2.1128,4290.8,4290.7,3.2078]
[1757177880413,2.8475501,4290.8,4290.7,3.2078]
[1757177880614,2.8475501,4290.8,4290.7,4.3821]
[1757177880919,2.8475501,4290.8,4290.7,5.2621]
[1757177880920,3.1395501,4290.8,4290.7,5.2621]
[1757177882117,2.8475501,4290.8,4290.7,5.2621]
[1757177882319,3.1395501,4290.8,4290.7,5.2621]
[1757177882518,3.1395501,4290.8,4290.7,4.3821]
[1757177884512,3.1395501,4290.8,4290.7,3.8004]
[1757177884815,3.1395501,4290.8,4290.1,3.2078]
[1757177885021,2.1128,4290.2,4290.1,3.8004]
[1757177885217,2.59910919,4290.2,4290.1,3.8004]
[1757177885420,1.1912,4289.3,4289.2,1.95838433]
[1757177885617,3.25759346,4289.3,4289.2,1.95838433]
[1757177885925,1.14479346,4289.3,4289.2,4.01268433]
[1757177887021,0.85479346,4289.3,4289.2,4.01268433]
[1757177887223,1.14479346,4289.3,4289.2,4.01268433]
[1757177889027,0.60242637,4289.3,4289.2,4.01268433]
[1757177890424,1.22362637,4289.3,4289.2,4.01268433]
[1757177890737,2.71522637,4289.3,4289.2,4.01268433]
[1757177891435,1.50362637,4289.3,4289.2,4.01268433]
[1757177891635,2.71322637,4289.3,4289.2,4.01268433]
[1757177891833,2.71322637,4289.3,4289.2,3.43098433]
[1757177893035,2.71322637,4289.3,4289.2,1.95838433]
[1757177893226,2.71322637,4289.3,4289.2,3.43098433]
[1757177893739,2.71322637,4289.3,4289.2,1.95838433]
[1757177893946,3.284086,4289.3,4289.2,1.95838433]
[1757177894238,2.71322637,4289.3,4289.2,1.95838433]
[1757177894438,2.71322637,4289.3,4289.2,3.43098433]
[1757177894638,3.28447921,4289.3,4289.2,3.43098433]
[1757177895135,3.28447921,4289.3,4289.2,1.95838433]
[1757177895340,2.99647921,4289.3,4289.2,1.95838433]
[1757177895540,3.28247921,4289.3,4289.2,1.95838433]
[1757177895838,7.28247921,4289.3,4289.2,1.95838433]
[1757177897136,6.99647921,4289.3,4289.2,1.95838433]
[1757177897348,7.28247921,4289.3,4289.2,1.95838433]
[1757177897844,6.99647921,4289.3,4289.2,1.95838433]
[1757177898044,2.99647921,4289.3,4289.2,3.43098433]
[1757177898242,3.28147921,4289.3,4289.2,3.43098433]
[1757177898640,1.50487921,4289.3,4289.2,4.01268433]
[1757177898943,1.78987921,4289.3,4289.2,4.01268433]
[1757177900148,3.21017921,4289.3,4289.2,1.95838433]
[1757177901147,3.21017921,4289.3,4289.2,3.42048433]
[1757177901644,2.92517921,4289.3,4289.2,3.42048433]
[1757177901849,3.20917921,4289.3,4289.2,3.42048433]
[1757177902033,3.20917921,4289.3,4289.2,1.95838433]
[1757177903742,3.22426817,4289.3,4289.2,1.95838433]
[1757177903947,3.22326817,4289.3,4289.2,1.95838433]
[1757177904249,2.94026817,4289.3,4289.2,3.42048433]
[1757177904443,2.94026817,4289.3,4289.2,3.98178433]
[1757177904444,1.80296817,4289.3,4289.2,3.98178433]
[1757177904940,2.37726817,4289.3,4289.2,3.98178433]
[1757177906349,1.80296817,4289.3,4289.2,3.98178433]
[1757177906549,0.89876817,4289.3,4289.2,3.98178433]
[1757177906744,0.8503,4290.8,4289.3,0.8946]
[1757177907043,4.3878,4290.4,4290.3,0.5675]
[1757177907240,5.5211,4290.4,4290.3,0.5675]
[1757177907638,4.9468,4290.4,4290.3,2.0234]
[1757177907843,0.8887,4290.4,4290.3,2.0234]
[1757177908044,2.3133,4290.4,4290.3,1.1288]
[1757177908245,2.3133,4290.4,4290.0,0.8946]
[1757177908447,0.8503,4290.3,4290.2,0.5675]
[1757177908750,2.0303,4290.3,4290.2,0.5675]
[1757177909349,2.0303,4290.3,4290.2,2.0234]
[1757177909651,0.283,4290.4,4290.3,0.8946]
[1757177909851,0.8887,4290.4,4290.3,2.0234]
[1757177912554,0.8503,4290.7,4290.3,2.0234]
[1757177912555,3.2078,4290.8,4290.5,0.3687]
[1757177912754,1.01702,4291.5,4291.3,0.8946]
[1757177913057,1.01702,4291.5,4291.4,2.0234]
[1757177913552,1.01702,4291.5,4291.4,6.0234]
[1757177913743,0.283,4291.8,4291.4,5.1288]
[1757177913948,0.283,4291.8,4291.7,1.8402]
[1757177915854,0.283,4291.8,4291.7,5.8402]
[1757177916560,2.33975829,4292.0,4291.9,1.8402]
[1757177920952,2.33975829,4292.0,4291.9,6.1232]
[1757177921466,4.15345829,4292.0,4291.9,1.4118]
[1757177922065,4.72775829,4292.0,4291.9,0.5675]
[1757177922260,4.72775829,4292.0,4291.9,1.8402]
[1757177922261,2.33975829,4292.0,4291.9,1.8402]
[1757177922460,2.10583745,4293.8,4293.0,0.4192]
[1757177922668,2.10583745,4293.8,4291.9,7.7438]
[1757177922669,0.19392091,4293.7,4293.3,3.2078]
[1757177922865,1.25553745,4293.8,4293.3,3.2078]
[1757177923063,1.25553745,4293.8,4293.6,0.41914]
[1757177923268,1.25553745,4293.8,4293.4,4.60491]
[1757177923269,1.67404994,4294.9,4293.7,0.283]
[1757177923464,1.67404994,4294.9,4294.6,3.2078]
[1757177923662,0.8503,4294.8,4294.7,0.283]
[1757177923962,1.67404994,4294.9,4294.6,3.2078]
[1757177924358,1.67404994,4294.9,4294.7,0.283]
[1757177924960,1.67404994,4294.9,4294.8,4.0]
[1757177925367,1.67404994,4294.9,4294.8,4.283]
[1757177926361,2.09256242,4296.0,4294.8,4.51584]
[1757177926567,2.09256242,4296.0,4295.9,3.2078]
[1757177926762,2.09256242,4296.0,4295.9,3.4908]
[1757177926967,2.09256242,4296.0,4295.9,7.4908]
[1757177927867,3.30056242,4296.0,4295.9,3.4908]
[1757177928765,3.30056242,4296.0,4295.9,3.2078]
[1757177929266,1.2527,4295.5,4295.4,3.2078]
[1757177929465,1.2527,4295.5,4295.4,3.4908]
[1757177929660,1.2527,4295.5,4295.4,3.2078]
[1757177929863,1.2527,4295.5,4295.4,3.4908]
[1757177930263,1.2527,4295.5,4295.4,3.2078]
[1757177930466,1.2527,4295.5,4295.4,3.4908]
[1757177930967,1.2527,4295.5,4295.4,3.2078]
[1757177933661,2.45026242,4296.0,4295.4,3.4908]
[1757177933863,0.9119,4295.9,4295.4,3.4908]
[1757177934064,2.45026242,4296.0,4295.4,3.4908]
[1757177934264,0.3408,4295.5,4295.4,3.2078]
[1757177934464,1.2527,4295.5,4295.4,3.4908]
[1757177935369,1.2527,4295.5,4295.4,3.2078]
[1757177935559,1.2527,4295.5,4295.4,3.4908]
[1757177936062,1.2527,4295.5,4295.4,3.2078]
[1757177936770,0.9119,4295.4,4295.0,0.283]
[1757177936974,0.9119,4295.8,4295.4,0.0341]
[1757177937271,0.9119,4295.8,4295.5,0.3171]
[1757177937873,0.9119,4295.8,4295.6,0.0341]
[1757177938068,2.45026242,4296.0,4295.3,3.2078]
[1757177938271,2.09256242,4296.0,4295.4,0.283]
[1757177938567,3.34526242,4296.0,4295.9,3.2078]
[1757177938769,3.34526242,4296.0,4295.9,3.4908]
[1757177938970,3.34526242,4296.0,4295.9,3.2078]
[1757177939172,0.3408,4295.5,4295.4,3.2078]
[1757177939374,1.2527,4295.5,4295.4,3.2078]
[1757177942377,2.4376,4295.5,4295.4,3.2078]
[1757177943273,1.5257,4295.0,4294.9,3.2078]
[1757177943480,2.4376,4295.0,4294.9,3.2078]
[1757177943778,2.4376,4295.0,4294.9,3.317]
[1757177944370,0.9553,4294.5,4294.4,0.0546]
[1757177944570,1.8672,4294.5,4294.4,0.3912]
[1757177944975,2.4376,4294.5,4294.4,0.282]
[1757177945175,0.9119,4294.4,4294.3,0.282]
[1757177945376,0.6145,4294.3,4294.2,3.2624]
[1757177945572,1.5264,4294.3,4294.2,3.5444]
[1757177945773,2.0968,4294.3,4294.2,3.2624]
[1757177945969,2.0968,4294.3,4293.7,3.2078]
[1757177946173,1.5264,4293.9,4293.8,0.3912]
[1757177946379,0.9119,4293.9,4293.8,0.3912]
[1757177946970,1.5264,4293.9,4293.8,0.3912]
[1757177947172,2.0968,4293.9,4293.8,0.1092]
[1757177947374,2.0968,4293.8,4293.7,3.2078]
[1757177947581,0.9112,4293.5,4293.4,0.282]
[1757177947771,2.4376,4293.5,4293.4,0.282]
[1757177948577,1.1849,4293.3,4293.2,3.2078]
[1757177948775,1.5264,4293.3,4293.2,3.599]
[1757177949178,2.67098055,4293.3,4293.2,3.2078]
[1757177949385,2.67098055,4293.3,4293.2,3.2624]
[1757177949877,2.67098055,4293.3,4293.2,3.2078]
[1757177950581,2.67098055,4293.3,4293.2,0.0546]
[1757177951076,1.75908055,4293.3,4292.9,0.282]
[1757177951381,2.4376,4293.0,4292.9,0.0546]
[1757177951583,3.01178055,4293.0,4292.9,0.0546]
[1757177951780,0.9119,4292.9,4292.8,0.282]
[1757177952093,2.67098055,4292.9,4292.8,0.282]
[1757177952276,2.0968,4292.8,4292.7,3.2078]
[1757177952478,2.67098055,4292.8,4292.7,3.2078]
[1757177952878,2.95298055,4292.8,4292.7,3.2078]
[1757177953076,2.95298055,4292.8,4292.7,2.2679]
[1757177953284,2.95298055,4292.8,4292.0,0.282]
[1757177953285,2.0968,4292.2,4292.1,3.2078]
[1757177953482,2.67098055,4292.2,4292.1,3.2078]
[1757177953979,2.67098055,4292.2,4292.1,9.206]
[1757177953980,0.57418055,4292.2,4292.1,9.206]
[1757177954186,0.9119,4292.8,4292.1,9.206]
[1757177954478,0.56857879,4292.7,4292.2,0.282]
[1757177954677,2.09497879,4292.6,4292.5,0.5662]
[1757177954882,2.66537879,4292.6,4292.5,0.5662]
[1757177955079,0.56857879,4292.6,4292.5,1.9982]
[1757177955384,1.8084,4293.2,4293.1,1.1506]
[1757177955587,2.37667654,4293.2,4293.1,1.1506]
[1757177956785,2.94707654,4293.2,4293.1,1.1506]
[1757177957484,0.282,4293.2,4293.1,1.9982]
[1757177958077,1.1939,4293.2,4293.1,1.9982]
[1757177958277,0.282,4293.2,4293.1,1.9982]
[1757177958873,1.0331,4293.4,4293.2,0.8783]
[1757177959077,1.0331,4293.4,4293.3,2.0666]
[1757177959385,1.48505494,4293.4,4293.3,2.0666]
[1757177959586,1.2029,4292.8,4292.7,3.7778]
[1757177959780,1.2029,4292.8,4292.2,3.2078]
[1757177959978,0.6242,4293.0,4292.2,3.2078]
[1757177960179,1.5108,4292.4,4292.3,1.4703]
[1757177960578,1.5108,4292.4,4292.2,3.2078]
[1757177960579,0.9168,4292.3,4292.2,3.2078]
[1757177960779,0.1163,4292.9,4292.7,1.1883]
[1757177961387,1.6271,4292.9,4292.8,2.0666]
[1757177961587,1.5108,4292.9,4292.8,2.0666]
[1757177961785,1.5108,4292.9,4292.8,1.1883]
[1757177961986,1.5108,4292.9,4292.8,2.0666]
[1757177962574,1.5108,4292.9,4292.8,1.1883]
[1757177962785,2.1197,4292.9,4292.8,0.57]
[1757177963377,1.2029,4292.6,4292.5,0.282]
[1757177963582,2.1197,4292.6,4292.5,0.852]
[1757177963784,1.5108,4292.6,4292.5,2.3486]
[1757177966578,2.1197,4292.6,4292.2,3.2078]
[1757177966783,0.594,4291.7,4291.6,4.3961]
[1757177966988,1.5108,4291.7,4291.6,4.3961]
[1757177967384,2.1197,4291.7,4291.6,4.3961]
[1757177967884,2.1197,4291.7,4291.6,3.2078]
[1757177968284,2.1197,4291.7,4291.6,3.7778]
[1757177969478,2.1197,4291.7,4291.6,3.2078]
[1757177971285,2.1197,4291.2,4291.1,4.3961]
[1757177971590,1.5108,4291.2,4291.1,5.2744]
[1757177971790,2.1197,4291.2,4291.1,3.2078]
[1757177972485,2.1197,4291.2,4290.9,0.282]
[1757177972685,2.4619,4291.0,4290.6,3.2078]
[1757177972890,2.1197,4290.9,4290.8,0.57]
[1757177973895,2.1197,4290.9,4290.8,1.1883]
[1757177975692,2.1197,4290.9,4290.8,0.57]
[1757177976095,2.4007,4290.9,4290.8,0.57]
[1757177978193,0.3422,4290.5,4290.1,3.2078]
[1757177978392,2.1197,4290.2,4290.1,3.7778]
[1757177978588,2.1197,4290.2,4290.1,4.3961]
[1757177979892,0.3422,4290.5,4290.4,2.0666]
[1757177979893,0.9168,4290.5,4290.4,2.0666]
[1757177980089,0.281,4290.6,4290.5,0.8783]
[1757177980290,2.1197,4290.9,4290.8,1.1883]
[1757177980491,2.4007,4290.9,4290.8,2.0666]
[1757177980795,1.7918,4291.0,4290.9,2.0666]
[1757177980995,1.5108,4291.0,4290.9,2.0666]
[1757177981199,1.7918,4291.0,4290.9,2.0666]
[1757177981389,0.9168,4291.9,4291.4,2.0666]
[1757177981588,1.5108,4291.5,4291.4,1.1883]
[1757177981884,1.853,4291.5,4291.4,1.1883]
[1757177982084,2.4619,4291.5,4291.4,1.1883]
[1757177982288,2.4619,4291.5,4291.4,0.57]
[1757177982689,1.5451,4291.5,4290.8,3.2078]
[1757177982891,2.1197,4290.9,4290.8,3.2078]
[1757177983190,2.1197,4290.9,4290.8,4.3961]
[1757177983496,0.281,4291.3,4290.8,8.3961]
[1757177983797,0.281,4291.3,4291.2,2.0666]
[1757177984186,1.1978,4291.3,4291.2,2.0666]
[1757177984390,1.5108,4291.3,4291.2,2.0666]
[1757177985687,1.5108,4291.3,4291.2,1.1883]
[1757177986098,1.5108,4291.3,4291.2,2.0666]
[1757177988193,2.1197,4291.3,4291.2,0.57]
[1757177988398,2.1197,4291.3,4291.2,1.1883]
[1757177989188,2.1197,4291.3,4291.2,2.0436]
[1757177989189,1.5108,4291.3,4291.2,2.0436]
[1757177990098,2.1239,4291.3,4291.2,1.1883]
[1757177990302,2.1239,4291.3,4290.8,3.2078]
[1757177990498,1.2082,4290.9,4290.8,3.8236]
[1757177990703,2.0519,4290.9,4290.8,3.8236]
[1757177990892,2.0519,4290.9,4290.8,4.4198]
[1757177991901,3.55,4291.5,4290.8,5.2751]
[1757177992103,1.1247,4291.4,4290.8,5.2751]
[1757177992603,3.2078,4291.5,4291.4,1.212]
[1757177992804,0.1164,4291.8,4291.5,0.8553]
[1757177993005,0.1164,4291.8,4291.7,2.0673]
[1757177993505,1.5552,4291.8,4291.7,2.0673]
[1757177997810,2.1683,4291.8,4291.7,1.212]
[1757178000004,2.0519,4291.4,4291.3,3.8236]
[1757178000512,2.0519,4291.4,4290.8,0.28]
[1757178001013,2.4182,4291.0,4290.9,0.6158]
[1757178001406,2.5346,4291.0,4290.9,1.212]
[1757178001607,2.5346,4291.0,4290.9,2.0673]
[1757178002509,2.5346,4291.0,4290.9,1.212]
[1757178002712,2.5346,4291.0,4290.9,2.0673]
[1757178003115,0.1164,4291.0,4290.9,2.0673]
[1757178003302,0.1164,4291.0,4290.9,2.3473]
[1757178005316,0.1164,4291.0,4290.9,6.3473]
[1757178007009,0.8437,4292.4,4291.8,1.212]
[1757178007209,0.28,4293.1,4292.3,2.0407]
[1757178007410,1.42005519,4292.9,4292.3,2.0407]
[1757178007604,0.8437,4292.9,4292.3,2.0407]
[1757178007914,0.8437,4292.9,4292.4,0.8287]
[1757178008215,2.0519,4292.9,4292.8,0.6158]
[1757178008714,2.0519,4292.9,4292.1,0.28]
[1757178009315,2.0519,4292.9,4292.8,0.6158]
[1757178010103,0.3663,4292.5,4292.1,0.28]
[1757178010313,2.4182,4292.5,4292.4,0.6158]
[1757178010510,2.4182,4292.5,4291.9,4.0365]
[1757178010511,0.9614,4292.0,4291.9,3.8236]
[1757178010708,0.3663,4292.5,4291.9,5.5285]
[1757178010908,0.3663,4292.5,4291.9,4.6998]
[1757178011115,0.8437,4292.4,4291.9,5.5285]
[1757178011319,0.3663,4292.5,4291.9,4.6998]
[1757178011511,0.8437,4292.4,4291.9,5.5285]
[1757178011708,0.5951,4292.0,4291.9,5.5285]
[1757178011914,1.4388,4292.0,4291.9,5.5285]
[1757178012117,2.4182,4292.0,4291.9,4.4198]
[1757178012309,2.4182,4292.0,4291.9,3.4878]
[1757178012713,2.4182,4292.0,4291.9,4.1036]
[1757178012907,2.4182,4292.0,4291.9,4.6998]
[1757178013319,2.4182,4292.0,4291.9,3.2078]
[1757178013925,2.0519,4291.2,4290.9,1.67173827]
[1757178014119,2.4182,4291.0,4290.9,1.212]
[1757178014420,2.4182,4291.0,4290.9,4.6988]
[1757178014820,2.4182,4291.0,4290.9,4.4198]
[1757178015018,2.4182,4291.0,4290.9,3.2078]
[1757178015519,2.4182,4291.0,4290.9,4.4198]
[1757178016420,2.63717508,4291.0,4290.9,3.8236]
[1757178016620,2.63717508,4291.0,4290.9,3.2078]
[1757178017218,2.63717917,4291.0,4290.9,3.8236]
[1757178018221,2.63717917,4291.0,4290.6,0.279]
[1757178018421,2.27087917,4290.9,4290.8,0.6158]
[1757178022323,2.0983,4290.1,4290.0,0.5611]